[Event "Betsys MČR v online bleskovém šachu 2021"]
[Site "Chess.com"]
[Date "2021.04.17"]
[Round "6"]
[White "mayerrs"]
[Black "sajmon8"]
[Result "0-1"]
[WhiteElo "1864"]
[BlackElo "1625"]
[TimeControl "180+1"]
[EndTime "9:57:49 PDT"]
[Termination "Uživatel sajmon8 zvítězil na čas"]

1. g3 {[%clk 0:03:00.9]} 1... b6 {[%clk 0:02:57.2]} 2. Bg2 {[%clk 0:03:01.8]}
2... Nc6 {[%clk 0:02:53.6]} 3. e3 {[%clk 0:03:02]} 3... Bb7 {[%clk 0:02:53.7]}
4. Ne2 {[%clk 0:03:02]} 4... g6 {[%clk 0:02:53.6]} 5. O-O {[%clk 0:03:01.2]}
5... Bg7 {[%clk 0:02:53.7]} 6. d4 {[%clk 0:03:01.7]} 6... d5 {[%clk 0:02:51.8]}
7. b3 {[%clk 0:02:56.7]} 7... Rc8 {[%clk 0:02:48]} 8. Bb2 {[%clk 0:02:56.8]}
8... e6 {[%clk 0:02:45.8]} 9. a3 {[%clk 0:02:56.1]} 9... Nge7 {[%clk 0:02:43.9]}
10. Nd2 {[%clk 0:02:56]} 10... O-O {[%clk 0:02:37.7]} 11. Rc1 {[%clk 0:02:56]}
11... Nf5 {[%clk 0:02:20.2]} 12. c4 {[%clk 0:02:51.7]} 12... dxc4 {[%clk
0:02:11.8]} 13. bxc4 {[%clk 0:02:52.6]} 13... Na5 {[%clk 0:02:04.9]} 14. Qc2
{[%clk 0:02:40.5]} 14... Bxg2 {[%clk 0:01:55.4]} 15. Kxg2 {[%clk 0:02:41.4]}
15... Nb7 {[%clk 0:01:54.4]} 16. Qa4 {[%clk 0:02:35.5]} 16... c5 {[%clk
0:01:45.4]} 17. Qxa7 {[%clk 0:02:21.8]} 17... Qd7 {[%clk 0:01:37.7]} 18. Qxb6
{[%clk 0:02:11.4]} 18... cxd4 {[%clk 0:01:33.4]} 19. exd4 {[%clk 0:02:03.4]}
19... Rfd8 {[%clk 0:01:21.6]} 20. Nf3 {[%clk 0:01:52.9]} 20... Nbd6 {[%clk
0:01:11.9]} 21. Qb3 {[%clk 0:01:12.9]} 21... Rb8 {[%clk 0:01:04.1]} 22. Qc2
{[%clk 0:01:09.5]} 22... Rdc8 {[%clk 0:00:48.8]} 23. c5 {[%clk 0:01:09.6]} 23...
Nb5 {[%clk 0:00:46]} 24. Rfd1 {[%clk 0:00:57]} 24... Ra8 {[%clk 0:00:43.9]} 25.
c6 {[%clk 0:00:54.7]} 25... Qd5 {[%clk 0:00:41.3]} 26. Nf4 {[%clk 0:00:46.2]}
26... Qd6 {[%clk 0:00:36.7]} 27. Ne5 {[%clk 0:00:41.3]} 27... Nxa3 {[%clk
0:00:28.7]} 28. Bxa3 {[%clk 0:00:38]} 28... Rxa3 {[%clk 0:00:22.1]} 29. Nc4
{[%clk 0:00:22.8]} 29... Qxc6+ {[%clk 0:00:15.8]} 30. d5 {[%clk 0:00:16.4]}
30... exd5 {[%clk 0:00:10.8]} 31. Nxd5 {[%clk 0:00:12.9]} 31... Qxd5+ {[%clk
0:00:10.4]} 32. Rxd5 {[%clk 0:00:12.2]} 32... Ra4 {[%clk 0:00:10.1]} 33. Qd3
{[%clk 0:00:07.7]} 33... Re8 {[%clk 0:00:06.9]} 34. Nd6 {[%clk 0:00:05.3]} 34...
Nxd6 {[%clk 0:00:05.5]} 35. Rxd6 {[%clk 0:00:06.2]} 35... Ra2 {[%clk 0:00:06]}
36. Rd8 {[%clk 0:00:06]} 36... Kf8 {[%clk 0:00:05.3]} 37. Rxe8+ {[%clk 0:00:06]}
37... Kxe8 {[%clk 0:00:06.2]} 0-1

[Event "Betsys MČR v online bleskovém šachu 2021"]
[Site "Chess.com"]
[Date "2021.04.17"]
[Round "6"]
[White "Maty122"]
[Black "Alesbar"]
[Result "0-1"]
[WhiteElo "1127"]
[BlackElo "1608"]
[TimeControl "180+1"]
[EndTime "9:57:50 PDT"]
[Termination "Uživatel Alesbar zvítězil na čas"]

1. e4 {[%clk 0:03:00.9]} 1... c5 {[%clk 0:02:59.4]} 2. Nf3 {[%clk 0:03:00.5]}
2... d6 {[%clk 0:02:59.4]} 3. c3 {[%clk 0:02:59.9]} 3... e6 {[%clk 0:02:58.6]}
4. d4 {[%clk 0:02:59.6]} 4... cxd4 {[%clk 0:02:57.2]} 5. cxd4 {[%clk 0:02:59.3]}
5... Nf6 {[%clk 0:02:56.8]} 6. Nc3 {[%clk 0:02:57.4]} 6... Be7 {[%clk
0:02:56.4]} 7. Bb5+ {[%clk 0:02:54]} 7... Bd7 {[%clk 0:02:55.8]} 8. Bc4 {[%clk
0:02:53.3]} 8... a6 {[%clk 0:02:53.9]} 9. O-O {[%clk 0:02:52.4]} 9... O-O {[%clk
0:02:53.2]} 10. Bf4 {[%clk 0:02:46.2]} 10... Nc6 {[%clk 0:02:44.8]} 11. d5
{[%clk 0:02:36.5]} 11... Na5 {[%clk 0:02:32.3]} 12. dxe6 {[%clk 0:02:13]} 12...
Nxc4 {[%clk 0:02:27.3]} 13. exd7 {[%clk 0:02:09.8]} 13... Qxd7 {[%clk
0:02:22.3]} 14. b3 {[%clk 0:02:05.3]} 14... Nb6 {[%clk 0:02:12.7]} 15. Re1
{[%clk 0:02:02.7]} 15... Rac8 {[%clk 0:02:07.5]} 16. Nd5 {[%clk 0:01:55.7]}
16... Nbxd5 {[%clk 0:02:05.3]} 17. exd5 {[%clk 0:01:55.6]} 17... Rfe8 {[%clk
0:02:05]} 18. Bg5 {[%clk 0:01:48.8]} 18... h6 {[%clk 0:02:01.9]} 19. Bh4 {[%clk
0:01:46]} 19... Bd8 {[%clk 0:01:56.8]} 20. Rxe8+ {[%clk 0:01:37.8]} 20... Qxe8
{[%clk 0:01:56.3]} 21. Qd4 {[%clk 0:01:33.5]} 21... Qe4 {[%clk 0:01:49.6]} 22.
Qxe4 {[%clk 0:01:12.2]} 22... Nxe4 {[%clk 0:01:48.5]} 23. Bg3 {[%clk 0:01:07.1]}
23... Nxg3 {[%clk 0:01:44.2]} 24. hxg3 {[%clk 0:01:06.8]} 24... Bf6 {[%clk
0:01:35.2]} 25. Re1 {[%clk 0:01:04.1]} 25... Rc2 {[%clk 0:01:32.6]} 26. a4
{[%clk 0:01:01.3]} 26... Rc3 {[%clk 0:01:25.8]} 27. Re8+ {[%clk 0:00:54.2]}
27... Kh7 {[%clk 0:01:24.7]} 28. Nd2 {[%clk 0:00:51]} 28... Rd3 {[%clk
0:01:19.7]} 29. Nc4 {[%clk 0:00:44.5]} 29... Rxd5 {[%clk 0:01:18.7]} 30. Rb8
{[%clk 0:00:38.5]} 30... b5 {[%clk 0:01:16.3]} 31. axb5 {[%clk 0:00:37.2]} 31...
axb5 {[%clk 0:01:15.2]} 32. Nb6 {[%clk 0:00:31.2]} 32... Rd1+ {[%clk 0:01:13.2]}
33. Kh2 {[%clk 0:00:25.9]} 33... Rb1 {[%clk 0:01:09.1]} 34. Nd5 {[%clk
0:00:20.8]} 34... Rxb3 {[%clk 0:01:08.4]} 35. Rb6 {[%clk 0:00:18.4]} 35... Rd3
{[%clk 0:00:54.8]} 36. Rxb5 {[%clk 0:00:16.5]} 36... Be5 {[%clk 0:00:52.4]} 37.
f3 {[%clk 0:00:14.9]} 37... g5 {[%clk 0:00:48.3]} 38. Nb4 {[%clk 0:00:11.5]}
38... Rd2 {[%clk 0:00:46.5]} 39. Rb7 {[%clk 0:00:04.8]} 39... Kg6 {[%clk
0:00:45.1]} 40. Nc6 {[%clk 0:00:03.7]} 40... Rc2 {[%clk 0:00:40.4]} 41. Nd8
{[%clk 0:00:03.1]} 41... f6 {[%clk 0:00:36.8]} 42. Rf7 {[%clk 0:00:02.3]} 42...
Rc8 {[%clk 0:00:34.3]} 43. Rd7 {[%clk 0:00:01.6]} 43... h5 {[%clk 0:00:28.6]}
44. Kg1 {[%clk 0:00:01.4]} 44... Rc1+ {[%clk 0:00:26.8]} 45. Kf2 {[%clk
0:00:01.5]} 45... Rc2+ {[%clk 0:00:26.2]} 0-1

[Event "Betsys MČR v online bleskovém šachu 2021"]
[Site "Chess.com"]
[Date "2021.04.17"]
[Round "6"]
[White "Pekibeast"]
[Black "TheFr0zenSun"]
[Result "0-1"]
[WhiteElo "1877"]
[BlackElo "2243"]
[TimeControl "180+1"]
[EndTime "9:57:51 PDT"]
[Termination "Uživatel TheFr0zenSun zvítězil po vzdání soupeře"]

1. e4 {[%clk 0:02:56.4]} 1... e5 {[%clk 0:02:58.9]} 2. f4 {[%clk 0:02:56.1]}
2... exf4 {[%clk 0:02:58.1]} 3. Bc4 {[%clk 0:02:56.2]} 3... Ne7 {[%clk
0:02:55.2]} 4. d4 {[%clk 0:02:54.3]} 4... d5 {[%clk 0:02:54.3]} 5. exd5 {[%clk
0:02:54.5]} 5... Nxd5 {[%clk 0:02:53.5]} 6. Nf3 {[%clk 0:02:52.5]} 6... Be7
{[%clk 0:02:51.1]} 7. Bxd5 {[%clk 0:02:49.9]} 7... Qxd5 {[%clk 0:02:50.2]} 8.
Nc3 {[%clk 0:02:47.4]} 8... Qf5 {[%clk 0:02:39.1]} 9. O-O {[%clk 0:02:45.2]}
9... O-O {[%clk 0:02:34.5]} 10. Ne5 {[%clk 0:02:45.1]} 10... g5 {[%clk
0:02:25.9]} 11. g3 {[%clk 0:02:31.6]} 11... f6 {[%clk 0:02:22.4]} 12. Nd3 {[%clk
0:02:24.2]} 12... Nc6 {[%clk 0:01:57]} 13. gxf4 {[%clk 0:02:07.3]} 13... g4
{[%clk 0:01:34.7]} 14. Be3 {[%clk 0:01:53.5]} 14... Rd8 {[%clk 0:01:33.5]} 15.
Nf2 {[%clk 0:01:51.6]} 15... Bc5 {[%clk 0:01:26.9]} 16. Qe2 {[%clk 0:01:39]}
16... Nxd4 {[%clk 0:01:24.6]} 17. Bxd4 {[%clk 0:01:38.1]} 17... Bxd4 {[%clk
0:01:24.6]} 18. Rad1 {[%clk 0:01:22.6]} 18... b6 {[%clk 0:01:21.3]} 19. Qe4
{[%clk 0:01:17.7]} 19... Qxe4 {[%clk 0:01:06.9]} 20. Nxe4 {[%clk 0:01:14.9]}
20... Bf5 {[%clk 0:01:01.3]} 21. c3 {[%clk 0:01:11.3]} 21... Bxf2+ {[%clk
0:00:59.5]} 22. Nxf2 {[%clk 0:01:11.3]} 22... Kf7 {[%clk 0:00:53.9]} 23. Kg2
{[%clk 0:01:06.2]} 23... h5 {[%clk 0:00:53]} 24. Rxd8 {[%clk 0:01:00.3]} 24...
Rxd8 {[%clk 0:00:52]} 25. Rd1 {[%clk 0:01:01]} 25... Rxd1 {[%clk 0:00:45.9]} 26.
Nxd1 {[%clk 0:01:00.8]} 26... h4 {[%clk 0:00:45.2]} 27. Ne3 {[%clk 0:00:59.9]}
27... Be4+ {[%clk 0:00:40.9]} 28. Kf2 {[%clk 0:01:00.1]} 28... f5 {[%clk
0:00:41.1]} 29. Nc4 {[%clk 0:00:57.7]} 29... Ke6 {[%clk 0:00:40.5]} 30. Nd2
{[%clk 0:00:54.4]} 30... Bd5 {[%clk 0:00:39.8]} 31. a3 {[%clk 0:00:52.5]} 31...
b5 {[%clk 0:00:38.3]} 32. Nf1 {[%clk 0:00:48.8]} 32... c5 {[%clk 0:00:36.9]} 33.
Ne3 {[%clk 0:00:48.9]} 33... a5 {[%clk 0:00:36]} 34. Ke2 {[%clk 0:00:42.3]}
34... Be4 {[%clk 0:00:34.1]} 35. Kf2 {[%clk 0:00:40.5]} 35... b4 {[%clk
0:00:27.7]} 36. axb4 {[%clk 0:00:40.2]} 36... axb4 {[%clk 0:00:27.4]} 37. cxb4
{[%clk 0:00:40.7]} 37... cxb4 {[%clk 0:00:27.5]} 38. Ke2 {[%clk 0:00:36.2]}
38... Kd6 {[%clk 0:00:27.8]} 39. Nf1 {[%clk 0:00:36.1]} 39... Kc5 {[%clk
0:00:27.7]} 40. Nd2 {[%clk 0:00:36.4]} 40... Bd5 {[%clk 0:00:25.6]} 41. Kf2
{[%clk 0:00:32.1]} 41... Kd4 {[%clk 0:00:25.2]} 42. Ke2 {[%clk 0:00:32.5]} 42...
Bc4+ {[%clk 0:00:22.7]} 43. Kf2 {[%clk 0:00:30.1]} 43... Kd3 {[%clk 0:00:22.3]}
44. Nxc4 {[%clk 0:00:30]} 44... Kxc4 {[%clk 0:00:22.2]} 45. Ke3 {[%clk
0:00:29.1]} 45... Kb3 {[%clk 0:00:22.4]} 46. Kd4 {[%clk 0:00:29.6]} 46... Kxb2
{[%clk 0:00:22.1]} 47. Ke5 {[%clk 0:00:28.9]} 47... g3 {[%clk 0:00:22.6]} 48.
hxg3 {[%clk 0:00:28.6]} 48... hxg3 {[%clk 0:00:23.5]} 49. Kxf5 {[%clk
0:00:29.5]} 49... g2 {[%clk 0:00:24.1]} 50. Ke6 {[%clk 0:00:30.4]} 50... g1=Q
{[%clk 0:00:24]} 51. f5 {[%clk 0:00:31.3]} 51... Qe3+ {[%clk 0:00:23.7]} 52. Kf7
{[%clk 0:00:31.6]} 52... Qe5 {[%clk 0:00:22.9]} 53. f6 {[%clk 0:00:31.9]} 53...
b3 {[%clk 0:00:22.5]} 0-1

[Event "Betsys MČR v online bleskovém šachu 2021"]
[Site "Chess.com"]
[Date "2021.04.17"]
[Round "6"]
[White "Patriktesko"]
[Black "prosinec"]
[Result "1-0"]
[WhiteElo "2082"]
[BlackElo "1736"]
[TimeControl "180+1"]
[EndTime "9:57:52 PDT"]
[Termination "Uživatel Patriktesko zvítězil matem"]

1. d4 {[%clk 0:03:00.9]} 1... d6 {[%clk 0:02:52]} 2. Nf3 {[%clk 0:03:01]} 2...
Nf6 {[%clk 0:02:51.4]} 3. Bg5 {[%clk 0:03:00.9]} 3... c6 {[%clk 0:02:46.3]} 4.
c3 {[%clk 0:03:00.5]} 4... h6 {[%clk 0:02:45.3]} 5. Bh4 {[%clk 0:02:59.4]} 5...
g5 {[%clk 0:02:44.8]} 6. Bg3 {[%clk 0:02:59.2]} 6... Nh5 {[%clk 0:02:42.2]} 7.
e3 {[%clk 0:02:58.8]} 7... Nxg3 {[%clk 0:02:41.9]} 8. hxg3 {[%clk 0:02:59.7]}
8... Bg7 {[%clk 0:02:41.2]} 9. Bd3 {[%clk 0:02:59.4]} 9... Bg4 {[%clk
0:02:38.6]} 10. Nbd2 {[%clk 0:02:59.1]} 10... e5 {[%clk 0:02:35.3]} 11. Qc2
{[%clk 0:02:53.1]} 11... O-O {[%clk 0:02:22.5]} 12. O-O-O {[%clk 0:02:50.7]}
12... Nd7 {[%clk 0:02:09.5]} 13. Ne4 {[%clk 0:02:49.4]} 13... d5 {[%clk
0:01:42.9]} 14. Nexg5 {[%clk 0:02:46.2]} 14... Bxf3 {[%clk 0:01:27.9]} 15. Nxf3
{[%clk 0:02:27.3]} 15... e4 {[%clk 0:01:26.2]} 16. Bxe4 {[%clk 0:02:26.9]} 16...
dxe4 {[%clk 0:01:25.9]} 17. Qxe4 {[%clk 0:02:27.8]} 17... Nf6 {[%clk 0:01:22]}
18. Qd3 {[%clk 0:02:23.8]} 18... Qd5 {[%clk 0:01:17.7]} 19. Kb1 {[%clk
0:02:20.6]} 19... Qe4 {[%clk 0:01:12.8]} 20. Ne5 {[%clk 0:02:14.9]} 20... Qxd3+
{[%clk 0:01:08.8]} 21. Rxd3 {[%clk 0:02:15.8]} 21... Ne4 {[%clk 0:01:04.7]} 22.
Rf1 {[%clk 0:02:07.6]} 22... Bxe5 {[%clk 0:01:01.5]} 23. dxe5 {[%clk 0:02:08.5]}
23... Rad8 {[%clk 0:01:01.1]} 24. Kc2 {[%clk 0:02:05.5]} 24... Nc5 {[%clk
0:00:55.4]} 25. Rd4 {[%clk 0:02:00.1]} 25... Ne6 {[%clk 0:00:53]} 26. Rdd1
{[%clk 0:01:52.4]} 26... Rxd1 {[%clk 0:00:51.1]} 27. Rxd1 {[%clk 0:01:53.3]}
27... Rd8 {[%clk 0:00:50.9]} 28. Rh1 {[%clk 0:01:52.5]} 28... Kg7 {[%clk
0:00:50.4]} 29. b4 {[%clk 0:01:45.2]} 29... Ng5 {[%clk 0:00:45.9]} 30. f3 {[%clk
0:01:40.4]} 30... Rd5 {[%clk 0:00:40.2]} 31. a4 {[%clk 0:01:34.2]} 31... Rxe5
{[%clk 0:00:28.3]} 32. f4 {[%clk 0:01:32.8]} 32... Rxe3 {[%clk 0:00:28.3]} 33.
fxg5 {[%clk 0:01:32.4]} 33... hxg5 {[%clk 0:00:29.2]} 34. g4 {[%clk 0:01:28.1]}
34... Re2+ {[%clk 0:00:26.1]} 35. Kd3 {[%clk 0:01:27.9]} 35... Rxg2 {[%clk
0:00:26.2]} 36. a5 {[%clk 0:01:27.6]} 36... Rxg4 {[%clk 0:00:24.2]} 37. a6
{[%clk 0:01:27.4]} 37... b5 {[%clk 0:00:19.1]} 38. Re1 {[%clk 0:01:24.6]} 38...
Rg3+ {[%clk 0:00:18.8]} 39. Kd4 {[%clk 0:01:24.1]} 39... Rg4+ {[%clk 0:00:18.1]}
40. Kd3 {[%clk 0:01:20.1]} 40... Rg3+ {[%clk 0:00:18.2]} 41. Kc2 {[%clk
0:01:18.1]} 41... g4 {[%clk 0:00:17.2]} 42. Re7 {[%clk 0:01:17.6]} 42... Rg2+
{[%clk 0:00:17.5]} 43. Kb3 {[%clk 0:01:16.9]} 43... Rd2 {[%clk 0:00:13.7]} 44.
Rxa7 {[%clk 0:01:16]} 44... Rd8 {[%clk 0:00:13.2]} 45. Rc7 {[%clk 0:01:13.7]}
45... g3 {[%clk 0:00:10.8]} 46. Re7 {[%clk 0:01:07.2]} 46... Ra8 {[%clk
0:00:08.4]} 47. Re3 {[%clk 0:01:06.8]} 47... Rxa6 {[%clk 0:00:07.1]} 48. Rxg3+
{[%clk 0:01:06.7]} 48... Kf6 {[%clk 0:00:07.2]} 49. c4 {[%clk 0:01:07]} 49...
bxc4+ {[%clk 0:00:05.9]} 50. Kxc4 {[%clk 0:01:07.9]} 50... Ke7 {[%clk
0:00:05.7]} 51. Kc5 {[%clk 0:01:07.8]} 51... f6 {[%clk 0:00:03.8]} 52. Re3+
{[%clk 0:01:04.4]} 52... Kf7 {[%clk 0:00:03.6]} 53. Rh3 {[%clk 0:01:03.9]} 53...
Kg6 {[%clk 0:00:03]} 54. Rg3+ {[%clk 0:01:03.6]} 54... Kh5 {[%clk 0:00:02.6]}
55. Rg8 {[%clk 0:01:00.2]} 55... f5 {[%clk 0:00:02.4]} 56. Kd4 {[%clk
0:00:58.8]} 56... f4 {[%clk 0:00:01.5]} 57. Ke4 {[%clk 0:00:57.6]} 57... Ra4
{[%clk 0:00:01.6]} 58. Kf5 {[%clk 0:00:55.7]} 58... Rxb4 {[%clk 0:00:01.2]} 59.
Rh8# {[%clk 0:00:55.3]} 1-0

[Event "Betsys MČR v online bleskovém šachu 2021"]
[Site "Chess.com"]
[Date "2021.04.17"]
[Round "6"]
[White "Kokos3"]
[Black "Rognort"]
[Result "1-0"]
[WhiteElo "1523"]
[BlackElo "1786"]
[TimeControl "180+1"]
[EndTime "9:57:52 PDT"]
[Termination "Uživatel Kokos3 zvítězil matem"]

1. e4 {[%clk 0:03:00.9]} 1... d5 {[%clk 0:02:59.9]} 2. exd5 {[%clk 0:02:58.7]}
2... Qxd5 {[%clk 0:03:00.8]} 3. Nc3 {[%clk 0:02:58.3]} 3... Qa5 {[%clk
0:03:00.9]} 4. d4 {[%clk 0:02:56.8]} 4... c6 {[%clk 0:03:01.4]} 5. Nf3 {[%clk
0:02:41.6]} 5... Bf5 {[%clk 0:03:00.9]} 6. Be2 {[%clk 0:02:37.1]} 6... e6 {[%clk
0:03:00.5]} 7. O-O {[%clk 0:02:29.5]} 7... Nf6 {[%clk 0:03:00.4]} 8. Nh4 {[%clk
0:02:22]} 8... Bg6 {[%clk 0:03:00]} 9. Nxg6 {[%clk 0:02:14.7]} 9... hxg6 {[%clk
0:03:00.9]} 10. Bf4 {[%clk 0:02:02.9]} 10... Nbd7 {[%clk 0:02:56.2]} 11. a3
{[%clk 0:01:50]} 11... Qf5 {[%clk 0:02:53.6]} 12. Qd2 {[%clk 0:01:42.9]} 12...
Nb6 {[%clk 0:02:50.8]} 13. h3 {[%clk 0:01:11]} 13... Nbd5 {[%clk 0:02:47.9]} 14.
Bh2 {[%clk 0:00:58.8]} 14... g5 {[%clk 0:02:17.5]} 15. Bd3 {[%clk 0:00:56]}
15... Ne4 {[%clk 0:01:47.7]} 16. Bxe4 {[%clk 0:00:56]} 16... Qf6 {[%clk
0:01:47.1]} 17. Nxd5 {[%clk 0:00:55.4]} 17... cxd5 {[%clk 0:01:47.4]} 18. Bf3
{[%clk 0:00:54.9]} 18... Be7 {[%clk 0:01:38.9]} 19. b3 {[%clk 0:00:54.9]} 19...
Rc8 {[%clk 0:01:38.1]} 20. Rac1 {[%clk 0:00:52.8]} 20... O-O {[%clk 0:01:32.3]}
21. c4 {[%clk 0:00:52]} 21... Bxa3 {[%clk 0:01:26.9]} 22. Ra1 {[%clk 0:00:51.3]}
22... Be7 {[%clk 0:01:04.2]} 23. cxd5 {[%clk 0:00:51.2]} 23... Rfd8 {[%clk
0:00:58.5]} 24. dxe6 {[%clk 0:00:50.3]} 24... Rxd4 {[%clk 0:00:55]} 25. Qe2
{[%clk 0:00:45.7]} 25... Qxe6 {[%clk 0:00:40.6]} 26. Qxe6 {[%clk 0:00:43.8]}
26... fxe6 {[%clk 0:00:41.5]} 27. Bxb7 {[%clk 0:00:43.4]} 27... Rc3 {[%clk
0:00:38.1]} 28. Be5 {[%clk 0:00:41.3]} 28... Rxb3 {[%clk 0:00:38.4]} 29. Bxd4
{[%clk 0:00:38.7]} 29... Rxb7 {[%clk 0:00:39]} 30. Rxa7 {[%clk 0:00:38.3]} 30...
Rxa7 {[%clk 0:00:39.4]} 31. Bxa7 {[%clk 0:00:37.4]} 31... Bf6 {[%clk 0:00:39.3]}
32. Re1 {[%clk 0:00:35.4]} 32... Kf7 {[%clk 0:00:40]} 33. g3 {[%clk 0:00:33.7]}
33... Bc3 {[%clk 0:00:40.3]} 34. Re3 {[%clk 0:00:32.8]} 34... Bf6 {[%clk
0:00:41.2]} 35. f4 {[%clk 0:00:32.3]} 35... Kg6 {[%clk 0:00:41.5]} 36. Kg2
{[%clk 0:00:31.8]} 36... Bd4 {[%clk 0:00:41.7]} 37. Rxe6+ {[%clk 0:00:30.8]}
37... Bf6 {[%clk 0:00:41.9]} 38. fxg5 {[%clk 0:00:29.9]} 38... Kxg5 {[%clk
0:00:41.3]} 39. Be3+ {[%clk 0:00:27.2]} 39... Kf5 {[%clk 0:00:41.7]} 40. Ra6
{[%clk 0:00:26.7]} 40... Kg6 {[%clk 0:00:39.9]} 41. Kf3 {[%clk 0:00:25.2]} 41...
Kf5 {[%clk 0:00:40.1]} 42. g4+ {[%clk 0:00:24.8]} 42... Ke5 {[%clk 0:00:40.5]}
43. Bf4+ {[%clk 0:00:22.6]} 43... Kd4 {[%clk 0:00:39.6]} 44. g5 {[%clk
0:00:22.1]} 44... Bd8 {[%clk 0:00:37.7]} 45. h4 {[%clk 0:00:20.7]} 45... Kd5
{[%clk 0:00:37.3]} 46. h5 {[%clk 0:00:20.7]} 46... Be7 {[%clk 0:00:31.3]} 47. h6
{[%clk 0:00:20]} 47... gxh6 {[%clk 0:00:30.7]} 48. gxh6 {[%clk 0:00:19.6]} 48...
Bb4 {[%clk 0:00:31.3]} 49. h7 {[%clk 0:00:16.4]} 49... Bc3 {[%clk 0:00:32]} 50.
Bg5 {[%clk 0:00:13.9]} 50... Ke5 {[%clk 0:00:29.3]} 51. Bf6+ {[%clk 0:00:13.6]}
51... Kf5 {[%clk 0:00:30.2]} 52. Bxc3 {[%clk 0:00:13.4]} 52... Kg5 {[%clk
0:00:29.4]} 53. h8=Q {[%clk 0:00:12.5]} 53... Kf5 {[%clk 0:00:30.3]} 54. Qf6#
{[%clk 0:00:11.6]} 1-0

[Event "Betsys MČR v online bleskovém šachu 2021"]
[Site "Chess.com"]
[Date "2021.04.17"]
[Round "6"]
[White "chessbeer17"]
[Black "Tretrik"]
[Result "1-0"]
[WhiteElo "2351"]
[BlackElo "2135"]
[TimeControl "180+1"]
[EndTime "9:57:53 PDT"]
[Termination "Uživatel chessbeer17 zvítězil na čas"]

1. d4 {[%clk 0:03:00.9]} 1... Nf6 {[%clk 0:02:59]} 2. c4 {[%clk 0:03:01.3]} 2...
d6 {[%clk 0:02:59.6]} 3. Nc3 {[%clk 0:03:01.8]} 3... e5 {[%clk 0:03:00.2]} 4. d5
{[%clk 0:02:57.1]} 4... Bf5 {[%clk 0:02:57.3]} 5. Bg5 {[%clk 0:02:51.9]} 5...
Be7 {[%clk 0:02:54.4]} 6. Bxf6 {[%clk 0:02:52.2]} 6... Bxf6 {[%clk 0:02:54.4]}
7. e4 {[%clk 0:02:52.8]} 7... Bc8 {[%clk 0:02:47.8]} 8. Bd3 {[%clk 0:02:52.9]}
8... Bg5 {[%clk 0:02:46.6]} 9. Nf3 {[%clk 0:02:49]} 9... Bh6 {[%clk 0:02:45.3]}
10. O-O {[%clk 0:02:47.2]} 10... O-O {[%clk 0:02:43.8]} 11. Qc2 {[%clk 0:02:47]}
11... a5 {[%clk 0:02:41.5]} 12. a3 {[%clk 0:02:40.2]} 12... Nd7 {[%clk
0:02:21.8]} 13. Ne2 {[%clk 0:02:36.7]} 13... a4 {[%clk 0:02:11.4]} 14. Ng3
{[%clk 0:02:16.9]} 14... Nc5 {[%clk 0:02:08.5]} 15. Rad1 {[%clk 0:02:15.5]}
15... g6 {[%clk 0:02:06.6]} 16. h3 {[%clk 0:02:05.5]} 16... Bd7 {[%clk
0:02:04.5]} 17. Nh2 {[%clk 0:01:58.8]} 17... Qh4 {[%clk 0:01:54]} 18. Qe2 {[%clk
0:01:50.6]} 18... f5 {[%clk 0:01:47.4]} 19. exf5 {[%clk 0:01:47.3]} 19... gxf5
{[%clk 0:01:45.8]} 20. Qh5 {[%clk 0:01:20.8]} 20... Qxh5 {[%clk 0:01:26.2]} 21.
Nxh5 {[%clk 0:01:21.7]} 21... Ra6 {[%clk 0:00:59.7]} 22. Rfe1 {[%clk 0:00:39.4]}
22... Rb6 {[%clk 0:00:58]} 23. Re2 {[%clk 0:00:39.4]} 23... Be8 {[%clk
0:00:32.4]} 24. Ng3 {[%clk 0:00:38.2]} 24... Bd7 {[%clk 0:00:32.1]} 25. Nhf1
{[%clk 0:00:23.8]} 25... e4 {[%clk 0:00:24.9]} 26. Bb1 {[%clk 0:00:23]} 26...
Bg7 {[%clk 0:00:24.2]} 27. Rdd2 {[%clk 0:00:19.5]} 27... Bh6 {[%clk 0:00:23.4]}
28. Rc2 {[%clk 0:00:17.4]} 28... Re8 {[%clk 0:00:23.1]} 29. Nh5 {[%clk
0:00:14.5]} 29... Kf7 {[%clk 0:00:20.5]} 30. Ne3 {[%clk 0:00:13.1]} 30... f4
{[%clk 0:00:17.6]} 31. Ng4 {[%clk 0:00:11.8]} 31... Bxg4 {[%clk 0:00:15.8]} 32.
hxg4 {[%clk 0:00:12.7]} 32... Rg8 {[%clk 0:00:15.2]} 33. f3 {[%clk 0:00:10.7]}
33... Rb3 {[%clk 0:00:09.8]} 34. fxe4 {[%clk 0:00:08.5]} 34... Rxg4 {[%clk
0:00:09]} 35. e5 {[%clk 0:00:08.9]} 35... dxe5 {[%clk 0:00:04.3]} 36. Rxe5
{[%clk 0:00:09.8]} 36... Rbg3 {[%clk 0:00:03.4]} 37. Rf2 {[%clk 0:00:09.5]}
37... Rb3 {[%clk 0:00:02.7]} 38. Bxh7 {[%clk 0:00:08]} 38... Nd7 {[%clk
0:00:02]} 39. Re4 {[%clk 0:00:06.6]} 1-0